fUST/lending_fUST_20240703
["ID","MTS","AMOUNT","RATE_DAILY","PERIOD"]
[331035697,1720019445072,-500.0,0.00015097,2]
[331035698,1720019445082,-500.0,0.00015097,2]
[331035699,1720019445091,-500.0,0.00015097,2]
[331035700,1720019445101,-500.0,0.00015097,2]
[331035701,1720019445110,-500.0,0.00015097,2]
[331035702,1720019445120,-500.0,0.00015097,2]
[331035703,1720019445129,-500.0,0.00015097,2]
[331035704,1720019445139,-500.0,0.00015097,2]
[331035705,1720019445150,-264.60255204,0.00015097,2]
[331035706,1720019445160,-500.0,0.00015097,2]
[331035707,1720019445169,-500.0,0.00015097,2]
[331035708,1720019445182,-500.0,0.00015097,2]
[331035709,1720019445192,-500.0,0.00015097,2]
[331035710,1720019445201,-500.0,0.00015097,2]
[331035711,1720019445211,-500.0,0.00015097,2]
[331035712,1720019445224,-500.0,0.00015097,2]
[331035713,1720019445233,-500.0,0.00015097,2]
[331035714,1720019445243,-500.0,0.00015097,2]
[331035715,1720019445252,-500.0,0.00015097,2]
[331035716,1720019445264,-500.0,0.00015097,2]
[331035717,1720019445273,-500.0,0.00015097,2]
[331035718,1720019445283,-500.0,0.00015097,2]
[331035719,1720019445293,-500.0,0.00015097,2]
[331035720,1720019445302,-500.0,0.00015097,2]
[331035721,1720019445312,-500.0,0.00015097,2]
[331035722,1720019445322,-500.0,0.00015097,2]
[331035723,1720019445331,-500.0,0.00015097,2]
[331035724,1720019445340,-500.0,0.00015097,2]
[331035725,1720019445349,-500.0,0.00015097,2]
[331035726,1720019445359,-500.0,0.00015097,2]
[331035727,1720019445369,-500.0,0.00015097,2]
[331035728,1720019445378,-500.0,0.00015097,2]
[331035729,1720019445388,-500.0,0.00015097,2]
[331035730,1720019445397,-500.0,0.00015097,2]
[331035731,1720019445406,-500.0,0.00015097,2]
[331035732,1720019445416,-502.87748533,0.00015097,2]
[331035733,1720019445425,-6263.39896907,0.00015098,2]
[331035734,1720019445434,-6263.39896907,0.0001513,2]
[331035735,1720019445444,-1133.74,0.00015136,2]
[331035736,1720019445453,-500.0,0.00015136,2]
[331035737,1720019445462,-500.0,0.00015136,2]
[331035738,1720019445474,-500.0,0.00015136,2]
[331035739,1720019445483,-590.41,0.00015136,2]
[331035740,1720019445492,-313.47753864,0.00015136,2]
[331035741,1720019445502,-1476.83,0.00015136,2]
[331035742,1720019445511,-500.0,0.00015136,2]
[331035743,1720019445521,-500.0,0.00015136,2]
[331035744,1720019445530,-500.0,0.00015137,2]
[331035745,1720019445539,-500.0,0.00015137,2]
[331035746,1720019445549,-500.0,0.00015137,2]
[331035747,1720019445558,-500.0,0.00015137,2]
[331035748,1720019445567,-500.0,0.00015137,2]
[331035749,1720019445577,-500.0,0.00015137,2]
[331035750,1720019445588,-500.0,0.00015137,2]
[331035751,1720019445597,-500.0,0.00015137,2]
[331035752,1720019445606,-500.0,0.00015137,2]
[331035753,1720019445616,-500.0,0.00015137,2]
[331035754,1720019445625,-2252.79,0.00015138,2]
[331035755,1720019445634,-15709.03469662,0.00015143,2]
[331035756,1720019445644,-356520.914027,0.00015143,2]
[331035757,1720019445654,-158.88496,0.00015144,2]
[331035758,1720019445663,-524.183828,0.00015144,2]
[331035759,1720019445673,-524.183828,0.00015144,2]
[331035760,1720019445682,-6263.39896907,0.00015162,2]
[331035761,1720019445692,-151.0,0.00015262,2]
[331035762,1720019445702,-151.0,0.00015262,2]
[331035763,1720019445711,-151.0,0.00015262,2]
[331035764,1720019445722,-151.0,0.00015262,2]
[331035765,1720019445731,-151.0,0.00015262,2]
[331035766,1720019445741,-500.0,0.00015272,2]
[331035767,1720019445750,-500.0,0.00015272,2]
[331035768,1720019445759,-501.54836843,0.00015272,2]
[331035769,1720019445769,-500.0,0.00015272,2]
[331035770,1720019445778,-500.0,0.00015272,2]
[331035771,1720019445787,-500.0,0.00015272,2]
[331035772,1720019445797,-500.0,0.00015272,2]
[331035773,1720019445807,-500.0,0.00015272,2]
[331035774,1720019445816,-500.0,0.00015272,2]
[331035775,1720019445826,-500.0,0.00015272,2]
[331035776,1720019445836,-500.0,0.00015272,2]
[331035777,1720019445845,-500.0,0.00015272,2]
[331035778,1720019445854,-1372.19,0.00015272,2]
[331035779,1720019445864,-500.0,0.00015272,2]
[331035780,1720019445873,-500.0,0.00015272,2]
[331035781,1720019445883,-524.183828,0.00015272,2]
[331035782,1720019445892,-500.0,0.00015272,2]
[331035783,1720019445901,-500.0,0.00015272,2]
[331035784,1720019445911,-524.183828,0.00015272,2]
[331035785,1720019445921,-501.5057069,0.00015273,2]
[331035786,1720019445931,-500.0,0.00015273,2]
[331035787,1720019445941,-535.14024744,0.00015273,2]
[331035788,1720019445950,-500.0,0.00015273,2]
[331035789,1720019445960,-500.0,0.00015273,2]
[331035790,1720019445972,-500.0,0.00015273,2]
[331035791,1720019445981,-500.0,0.00015273,2]
[331035792,1720019445991,-500.0,0.00015273,2]
[331035794,1720019446000,-500.0,0.00015273,2]
[331035796,1720019446011,-501.3251656,0.00015273,2]
[331035798,1720019446020,-500.0,0.00015309,2]
[331035799,1720019446030,-516.02,0.00015309,2]
[331035800,1720019446039,-500.0,0.00015309,2]
[331035801,1720019446049,-500.0,0.00015309,2]
[331035802,1720019446058,-151.0,0.00015309,2]
[331035803,1720019446068,-500.0,0.00015309,2]
[331035804,1720019446077,-151.0,0.00015309,2]
[331035805,1720019446086,-754.31,0.00015309,2]
[331035806,1720019446096,-500.0,0.00015309,2]
[331035807,1720019446105,-500.0,0.00015309,2]
[331035808,1720019446115,-298.79000142,0.00015309,2]
[331035809,1720019446124,-500.0,0.00015309,2]
[331035810,1720019446133,-500.0,0.00015309,2]
[331035811,1720019446144,-993.89,0.00015309,2]
[331035812,1720019446153,-500.0,0.00015309,2]
[331035813,1720019446162,-25415.51730881,0.00015378,2]
[331035814,1720019446179,-331105.39671819,0.00015378,2]
[331035815,1720019446190,-524.183828,0.00015379,2]
[331035816,1720019446199,-524.183828,0.00015379,2]
[331035817,1720019446208,-154.682838,0.00015388,2]
[331035818,1720019446219,-151.0,0.00015388,2]
[331035819,1720019446228,-202.172565,0.00015388,2]
[331035820,1720019446241,-151.0,0.00015388,2]
[331035821,1720019446250,-1133.74,0.0001541,2]
[331035822,1720019446263,-500.0,0.0001541,2]
[331035823,1720019446273,-500.0,0.0001541,2]
[331035824,1720019446283,-500.0,0.0001541,2]
[331035825,1720019446291,-151.0,0.0001541,2]
[331035826,1720019446301,-1476.83,0.0001541,2]
[331035827,1720019446309,-500.0,0.0001541,2]
[331035828,1720019446318,-500.0,0.0001541,2]
[331035829,1720019446328,-500.0,0.00015411,2]
[331035830,1720019446338,-500.0,0.00015411,2]
[331035831,1720019446347,-500.0,0.00015411,2]
[331035832,1720019446356,-500.0,0.00015411,2]
[331035833,1720019446366,-195.52931464,0.00015411,2]
[331035834,1720019446375,-500.0,0.00015411,2]
[331035835,1720019446384,-349.01093909,0.00015411,2]
[331035836,1720019446393,-359.96145851,0.00015411,2]
[331035837,1720019446402,-500.0,0.00015411,2]
[331035838,1720019446411,-2252.79,0.00015412,2]
[331035839,1720019446421,-151.0,0.00015412,2]
[331035840,1720019446559,-151.0,0.00015412,2]
[331035841,1720019446568,-877.0,0.00015505,2]
[331035842,1720019446578,-524.183828,0.00015506,2]
[331035843,1720019446587,-524.183828,0.00015506,2]
[331035844,1720019446596,-557.41940727,0.00015534,2]
[331035845,1720019446605,-174.0688664,0.00015534,2]
[331035846,1720019446614,-570.0468568,0.00015534,2]
[331035847,1720019446623,-500.0,0.00015534,2]
[331035848,1720019446632,-500.0,0.00015534,2]
[331035849,1720019446641,-500.0,0.00015534,2]
[331035850,1720019446650,-1000.0,0.00015534,2]
[331035851,1720019446659,-500.0,0.00015534,2]
[331035852,1720019446668,-500.0,0.00015534,2]
[331035853,1720019446677,-460.68263836,0.00015534,2]
[331035854,1720019446686,-500.0,0.00015534,2]
[331035855,1720019446695,-500.0,0.00015534,2]
[331035856,1720019446704,-506.89200503,0.00015534,2]
[331035857,1720019446712,-500.0,0.00015534,2]
[331035858,1720019446728,-325.46793675,0.00015534,2]
[331035859,1720019446737,-500.0,0.00015534,2]
[331035860,1720019446748,-500.0,0.00015534,2]
[331035861,1720019446756,-500.0,0.00015534,2]
[331035862,1720019446765,-500.0,0.00015534,2]
[331035863,1720019446774,-301.999999,0.00015534,2]
[331035864,1720019446783,-500.0,0.00015534,2]
[331035865,1720019446792,-151.0,0.00015534,2]
[331035866,1720019446800,-500.0,0.00015534,2]
[331035867,1720019446809,-500.0,0.00015534,2]
[331035868,1720019446819,-500.0,0.00015534,2]
[331035869,1720019446828,-500.0,0.00015534,2]
[331035870,1720019446838,-500.0,0.00015534,2]
[331035871,1720019446847,-500.0,0.00015534,2]
[331035872,1720019446856,-500.0,0.00015534,2]
[331035873,1720019446865,-500.0,0.00015534,2]
[331035874,1720019446874,-500.0,0.00015534,2]
[331035875,1720019446883,-500.0,0.00015534,2]
[331035876,1720019446892,-500.0,0.00015534,2]
[331035877,1720019446900,-500.0,0.00015534,2]
[331035878,1720019446909,-500.0,0.00015534,2]
[331035879,1720019446919,-500.0,0.00015534,2]
[331035880,1720019446927,-500.0,0.00015534,2]
[331035881,1720019446936,-500.0,0.00015534,2]
[331035882,1720019446945,-500.0,0.00015534,2]
[331035883,1720019446954,-500.0,0.00015534,2]
[331035885,1720019446963,-500.0,0.00015534,2]
[331035887,1720019446976,-500.0,0.00015534,2]
[331035890,1720019446985,-500.0,0.00015534,2]
[331035893,1720019446994,-500.0,0.00015534,2]
[331035895,1720019447003,-303.49464815,0.00015535,2]
[331035898,1720019447011,-180.16679,0.00015535,2]
[331035900,1720019447020,-151.0,0.00015535,2]
[331035902,1720019447030,-300.566636,0.00015535,2]
[331035903,1720019447039,-3141.08742443,0.00015545,2]
[331035904,1720019447047,-500.0,0.00015545,2]
[331035905,1720019447056,-975.83,0.00015545,2]
[331035906,1720019447065,-500.0,0.00015545,2]
[331035907,1720019447073,-500.0,0.00015545,2]
[331035908,1720019447082,-500.0,0.00015545,2]
[331035909,1720019447091,-1492.22,0.00015545,2]
[331035910,1720019447100,-500.0,0.00015545,2]
[331035911,1720019447109,-524.183828,0.00015545,2]
[331035912,1720019447119,-524.183828,0.00015545,2]
[331035914,1720019447128,-247.8,0.00015546,2]
[331035916,1720019447139,-500.0,0.00015546,2]
[331035919,1720019447148,-500.0,0.00015546,2]
[331035921,1720019447157,-500.0,0.00015546,2]
[331035922,1720019447166,-500.0,0.00015546,2]
[331035924,1720019447177,-500.0,0.00015546,2]
[331035925,1720019447189,-1372.19,0.00015546,2]
[331035926,1720019447198,-500.0,0.00015546,2]
[331035927,1720019447207,-500.0,0.00015546,2]
[331035928,1720019447218,-500.0,0.00015546,2]
[331035929,1720019447226,-500.0,0.00015547,2]
[331035930,1720019447235,-465.19471777,0.00015547,2]
[331035942,1720019447488,-70.50528223,0.00015547,2]
[331035945,1720019447498,-500.0,0.00015547,2]
[331035946,1720019447507,-500.0,0.00015547,2]
[331035948,1720019447516,-346.73761874,0.00015583,2]
[331035974,1720019447744,-153.26238126,0.00015583,2]
[331035976,1720019447754,-207.6,0.00015583,2]
[331035978,1720019447763,-754.31,0.00015583,2]
[331035980,1720019447772,-500.0,0.00015583,2]
[331035982,1720019447781,-0.38616482,0.00015583,2]
[331036128,1720019631976,204.38112075,9.999e-05,2]
[331036129,1720019632022,94.81174021,9.999e-05,2]
[331036130,1720019660498,158.57305371,9.999e-05,2]
[331036131,1720019697511,357.79537735,9.999e-05,2]
[331036132,1720019697556,65.47891712,9.999e-05,2]
[331036133,1720019759510,158.57305371,9.999e-05,2]
[331036135,1720019846533,158.57305371,9.999e-05,2]
[331036136,1720019851390,51.43426493,9.999e-05,2]
[331036137,1720019851439,142.23072065,9.999e-05,2]
[331036141,1720019949531,172.60658329,9.999e-05,2]
[331036142,1720019949583,67.84008161,9.999e-05,2]
[331036145,1720020125617,716.63917937,9.999e-05,4]
[331036146,1720020125675,359.09025904,9.999e-05,4]
[331036149,1720020253550,158.57305371,9.999e-05,2]
[331036153,1720020346157,-680.52859599,0.00013912,2]
[331036154,1720020356231,62.72918798,0.00011277,2]
[331036158,1720020430093,-746.33984813,0.00013872,2]
[331036159,1720020430281,-212.10054367,0.00013872,2]
[331036160,1720020430304,-476.74637333,0.00013912,2]
[331036163,1720020438124,-216.80646707,0.00013912,2]
[331036164,1720020444112,-155.749614,0.00013912,2]
[331036165,1720020451088,-227.04137473,0.00013912,2]
[331036166,1720020451128,-159.62058528,0.00013912,2]
[331036170,1720020568127,-4364.2939248,0.00013912,2]
[331036171,1720020568147,-268.985068,0.00014033,2]
[331036266,1720020641139,-300.0,0.00014997,2]
[331036268,1720020641152,-1580.87,0.00014998,2]
[331036269,1720020641162,-500.0,0.00014998,2]
[331036272,1720020641172,-500.0,0.00014998,2]
[331036275,1720020641181,-1152.34,0.00014998,2]
[331036278,1720020641190,-500.0,0.00014998,2]
[331036280,1720020641199,-500.0,0.00014998,2]
[331036281,1720020641208,-500.0,0.00014998,2]
[331036283,1720020641217,-500.0,0.00014998,2]
[331036284,1720020641227,-500.0,0.00014998,2]
[331036285,1720020641236,-1597.01694928,0.00014999,2]
[331036286,1720020641245,-1500.0,0.00014999,2]
[331036287,1720020641254,-789.69148627,0.00014999,2]
[331036288,1720020641263,-500.0,0.00014999,2]
[331036289,1720020641272,-500.0,0.00014999,2]
[331036290,1720020641281,-375.08403505,0.00015,2]
[331036291,1720020641291,-807.95624244,0.00015,2]
[331036292,1720020641299,-500.0,0.00015035,2]
[331036293,1720020641309,-162.10002085,0.00015134,2]
[331036294,1720020641318,-500.0,0.00015134,2]
[331036295,1720020641327,-484.92326951,0.00015134,2]
[331036296,1720020641337,-432.65089235,0.00015134,2]
[331036297,1720020641346,-500.0,0.00015135,2]
[331036298,1720020641355,-520.14,0.00015135,2]
[331036299,1720020641365,-525.79,0.00015135,2]
[331036300,1720020641374,-500.0,0.00015135,2]
[331036301,1720020641383,-500.0,0.00015135,2]
[331036302,1720020641392,-500.0,0.00015135,2]
[331036303,1720020641403,-353.62488328,0.00015135,2]
[331036304,1720020641412,-500.0,0.00015135,2]
[331036305,1720020641421,-500.0,0.00015135,2]
[331036306,1720020641430,-500.0,0.00015135,2]
[331036307,1720020641439,-500.0,0.00015135,2]
[331036308,1720020641449,-500.0,0.00015135,2]
[331036309,1720020641458,-500.0,0.00015135,2]
[331036310,1720020641468,-500.0,0.00015135,2]
[331036311,1720020641477,-500.0,0.00015135,2]
[331036312,1720020641486,-500.0,0.00015135,2]
[331036313,1720020641495,-500.0,0.00015135,2]
[331036314,1720020641504,-500.0,0.00015135,2]
[331036315,1720020641513,-500.0,0.00015135,2]
[331036316,1720020641522,-500.0,0.00015135,2]
[331036317,1720020641531,-796.55,0.00015135,2]
[331036318,1720020641542,-500.0,0.00015135,2]
[331036319,1720020641552,-500.0,0.00015135,2]
[331036320,1720020641561,-500.0,0.00015135,2]
[331036321,1720020641570,-1297.81,0.00015135,2]
[331036322,1720020641579,-1478.79,0.00015135,2]
[331036323,1720020641589,-500.0,0.00015135,2]
[331036324,1720020641600,-500.0,0.00015135,2]
[331036325,1720020641610,-500.0,0.00015135,2]
[331036326,1720020641619,-500.0,0.00015135,2]
[331036327,1720020641631,-500.0,0.00015135,2]
[331036328,1720020641641,-1148.01,0.00015135,2]
[331036329,1720020641652,-500.0,0.00015135,2]
[331036330,1720020641661,-500.0,0.00015135,2]
[331036331,1720020641670,-500.0,0.00015136,2]
[331036332,1720020641679,-500.0,0.00015136,2]
[331036333,1720020641688,-565.0127244,0.00015136,2]
[331036334,1720020641697,-500.0,0.00015136,2]
[331036335,1720020641706,-203.48266164,0.00015136,2]
[331036336,1720020641715,-2235.48,0.00015136,2]
[331036337,1720020641724,-500.0,0.00015136,2]
[331036338,1720020641733,-500.0,0.00015137,2]
[331036339,1720020641742,-177.6078578,0.00015169,2]
[331036340,1720020641751,-500.0,0.00015268,2]
[331036341,1720020641760,-500.0,0.00015268,2]
[331036342,1720020641769,-500.0,0.00015268,2]
[331036343,1720020641778,-500.0,0.00015268,2]
[331036344,1720020641787,-500.0,0.00015268,2]
[331036345,1720020641796,-419.26310918,0.00015268,2]
[331036346,1720020641805,-500.0,0.00015268,2]
[331036347,1720020641814,-375.49715664,0.00015268,2]
[331036348,1720020641823,-500.0,0.00015268,2]
[331036349,1720020641832,-299.02948927,0.00015268,2]
[331036350,1720020641841,-500.0,0.00015268,2]
[331036351,1720020641850,-500.0,0.00015268,2]
[331036352,1720020641859,-500.0,0.00015268,2]
[331036353,1720020641868,-500.0,0.00015268,2]
[331036354,1720020641877,-389.25775708,0.00015268,2]
[331036355,1720020641886,-500.0,0.00015268,2]
[331036356,1720020641896,-500.0,0.00015268,2]
[331036357,1720020641905,-500.0,0.00015268,2]
[331036358,1720020641914,-500.0,0.00015268,2]
[331036359,1720020641923,-500.0,0.00015268,2]
[331036360,1720020641932,-500.0,0.00015268,2]
[331036361,1720020641941,-500.0,0.00015268,2]
[331036362,1720020641950,-500.0,0.00015268,2]
[331036363,1720020641959,-500.0,0.00015268,2]
[331036364,1720020641968,-500.0,0.00015268,2]
[331036365,1720020641977,-500.0,0.00015268,2]
[331036366,1720020641986,-500.0,0.00015268,2]
[331036367,1720020641995,-500.0,0.00015268,2]
[331036368,1720020642004,-500.0,0.00015268,2]
[331036369,1720020642013,-500.0,0.00015268,2]
[331036370,1720020642023,-500.0,0.00015268,2]
[331036371,1720020642031,-500.0,0.00015268,2]
[331036372,1720020642040,-500.0,0.00015268,2]
[331036373,1720020642049,-500.0,0.00015268,2]
[331036374,1720020642058,-500.0,0.00015268,2]
[331036375,1720020642067,-500.0,0.00015268,2]
[331036376,1720020642076,-500.0,0.00015268,2]
[331036377,1720020642084,-500.0,0.00015268,2]
[331036378,1720020642093,-500.0,0.00015268,2]
[331036379,1720020642102,-365.48988408,0.00015268,2]
[331036380,1720020642111,-500.0,0.00015268,2]
[331036381,1720020642120,-500.0,0.00015268,2]
[331036382,1720020642128,-500.0,0.00015268,2]
[331036383,1720020642138,-500.0,0.00015268,2]
[331036384,1720020642148,-500.0,0.00015268,2]
[331036385,1720020642158,-500.0,0.00015268,2]
[331036386,1720020642166,-500.0,0.00015268,2]
[331036387,1720020642175,-500.0,0.00015268,2]
[331036388,1720020642185,-500.0,0.00015268,2]
[331036389,1720020642194,-500.0,0.00015271,2]
[331036390,1720020642203,-500.0,0.00015271,2]
[331036391,1720020642213,-500.0,0.00015271,2]
[331036392,1720020642221,-500.0,0.00015271,2]
[331036393,1720020642231,-500.0,0.00015271,2]
[331036394,1720020642240,-500.0,0.00015271,2]
[331036395,1720020642249,-500.0,0.00015271,2]
[331036396,1720020642259,-500.0,0.00015271,2]
[331036397,1720020642268,-500.0,0.00015271,2]
[331036398,1720020642277,-161.81887976,0.00015271,2]
[331036399,1720020642286,-500.0,0.00015272,2]
[331036400,1720020642295,-1580.87,0.00015272,2]
[331036401,1720020642304,-500.0,0.00015272,2]
[331036402,1720020642313,-500.0,0.00015272,2]
[331036403,1720020642322,-500.0,0.00015272,2]
[331036404,1720020642331,-500.0,0.00015272,2]
[331036405,1720020642340,-1152.34,0.00015272,2]
[331036406,1720020642349,-500.0,0.00015272,2]
[331036407,1720020642358,-500.0,0.00015272,2]
[331036408,1720020642367,-500.0,0.00015272,2]
[331036409,1720020642376,-500.0,0.00015272,2]
[331036410,1720020642384,-500.0,0.00015272,2]
[331036411,1720020642393,-500.0,0.00015272,2]
[331036412,1720020642402,-500.0,0.00015272,2]
[331036413,1720020642532,-500.0,0.00015272,2]
[331036414,1720020642545,-643.82,0.00015272,2]
[331036415,1720020642555,-500.0,0.00015273,2]
[331036416,1720020642564,-500.0,0.00015273,2]
[331036417,1720020642573,-500.0,0.00015309,2]
[331036418,1720020642584,-12699.83240421,0.00015392,2]
[331036419,1720020642595,-93673.9375012,0.00015392,2]
[331036420,1720020642799,-16934.3429051,0.00015392,2]
[331036421,1720020642811,-15630.72277764,0.00015392,2]
[331036422,1720020642823,-19147.97502254,0.00015392,2]
[331036423,1720020642834,-7992.81647,0.00015392,2]
[331036427,1720020644478,-639.7663711,0.00015392,2]
[331036428,1720020644490,-1413.66867828,0.00015392,2]
[331036518,1720020647475,-978.065,0.00015392,2]
[331036522,1720020804885,155.54458978,9.999e-05,4]
[331036555,1720021470862,150.5,0.0001538,62]
[331036556,1720021471456,150.5,0.0001537,62]
[331036557,1720021471925,223.44,0.0001536,62]
[331036572,1720021537835,188.28696041,9.999e-05,2]
[331036573,1720021538094,90.22773928,9.999e-05,2]
[331036574,1720021538122,375.23793367,9.999e-05,2]
[331036575,1720021551134,-522.19690124,0.0001212,2]
[331036576,1720021551157,-190.02814805,0.00013563,2]
[331036578,1720021592116,295.31,0.0001538,62]
[331036581,1720021625146,-151.0,0.00013261,2]
[331036582,1720021628113,-51.9,0.00013261,2]
[331036583,1720021628134,-202.9,0.00013332,2]
[331036584,1720021628154,-13.04284929,0.00013404,2]
[331036585,1720021631116,-189.85715071,0.00013404,2]
[331036586,1720021631137,-1.00259835,0.00013475,2]
[331036588,1720021638110,-201.89740165,0.00013475,2]
[331036589,1720021638130,-202.9,0.00013547,2]
[331036590,1720021638150,-215.90014508,0.00013563,2]
[331036591,1720021641115,-84.09985492,0.00013563,2]
[331036592,1720021641136,-69.93336508,0.00013563,2]
[331036593,1720021642296,-230.06663492,0.00013563,2]
[331036594,1720021642316,-222.93336508,0.00013564,2]
[331036597,1720021694098,-794.4993343,0.00013564,2]
[331036598,1720021694137,-732.87940285,0.00013564,2]
[331036604,1720021718993,-825.04690905,0.00013564,2]
[331036605,1720021719071,-825.04690905,0.00013564,2]
[331036608,1720021743999,-236.25069867,0.00013564,2]
[331036609,1720021744066,-858.04878541,0.00013564,2]
[331036610,1720021748300,-858.04878541,0.00013564,2]
[331036611,1720021754152,-5443.35838488,0.00013564,2]
[331036612,1720021754173,-202.9,0.00013618,2]
[331036613,1720021754194,-202.9,0.0001369,2]
[331036614,1720021754215,-5995.5339286,0.00013699,2]
[331036615,1720021754235,-202.9,0.00013761,2]
[331036616,1720021754255,-202.9,0.00013833,2]
[331036617,1720021754278,-202.9,0.00013904,2]
[331036618,1720021754299,-202.9,0.00013976,2]
[331036619,1720021754320,-202.9,0.00014047,2]
[331036620,1720021754340,-5431.12099059,0.00014086,2]
[331036623,1720021772157,-8599.88652976,0.00014086,2]
[331036624,1720021772177,-202.9,0.00014119,2]
[331036625,1720021772199,-202.9,0.0001419,2]
[331036626,1720021772218,-202.9,0.00014262,2]
[331036627,1720021772237,-202.9,0.00014333,2]
[331036628,1720021772256,-202.9,0.00014405,2]
[331036629,1720021772275,-63.77295694,0.00014477,2]
[331036634,1720021803564,179.92668839,0.0001,2]
[331036635,1720021803583,151.0,0.0001,2]
[331036636,1720021803602,237.40915651,0.0001,2]
[331036637,1720021803621,994.3,0.0001,2]
[331036638,1720021803640,266.37044207,0.0001,2]
[331036639,1720021803673,359.45399123,0.0001,2]
[331036673,1720021833266,-139.12704306,0.00014477,2]
[331036675,1720021833278,-202.9,0.00014548,2]
[331036677,1720021833289,-202.9,0.0001462,2]
[331036679,1720021833299,-500.0,0.00014988,2]
[331036681,1720021833309,-179.68418965,0.00014988,2]
[331036684,1720021833320,-500.0,0.00014988,2]
[331036686,1720021833330,-389.70884678,0.00014988,2]
[331036688,1720021833340,-600.60995437,0.00014988,2]
[331036690,1720021833352,-500.0,0.00014988,2]
[331036692,1720021833363,-500.0,0.00014988,2]
[331036694,1720021833373,-500.0,0.00014988,2]
[331036698,1720021833396,-500.0,0.00014988,2]
[331036700,1720021833411,-500.0,0.00014988,2]
[331036703,1720021833425,-500.0,0.00014988,2]
[331036705,1720021833438,-500.0,0.00014988,2]
[331036708,1720021833450,-500.0,0.00014988,2]
[331036710,1720021833462,-306.03536935,0.00014988,2]
[331036829,1720021837750,-274.38843319,0.00014988,2]
[331036830,1720021837760,-500.0,0.00014988,2]
[331036831,1720021837770,-124.401277,0.00014988,2]
[331036832,1720021837782,-375.598723,0.00014988,2]
[331036833,1720021837791,-500.0,0.00014988,2]
[331036834,1720021837801,-500.0,0.00014988,2]
[331036835,1720021837810,-500.0,0.00014988,2]
[331036836,1720021837819,-500.0,0.00014988,2]
[331036837,1720021837828,-500.0,0.00014988,2]
[331036838,1720021837837,-500.0,0.00014988,2]
[331036839,1720021837846,-500.0,0.00014988,2]
[331036840,1720021837857,-493.39516301,0.00014988,2]
[331036947,1720021845907,-6.60483699,0.00014988,2]
[331036948,1720021845920,-550.0,0.00014988,2]
[331036949,1720021845934,-499.99999999,0.00014988,2]
[331036950,1720021845943,-500.0,0.00014988,2]
[331036952,1720021845954,-500.0,0.00014988,2]
[331036954,1720021845966,-6349.91620211,0.00014988,2]
[331036956,1720021845975,-229.92252515,0.00014988,2]
[331036958,1720021845984,-313192.890249,0.00014989,2]
[331036960,1720021845997,-500.0,0.00014997,2]
[331036962,1720021846009,-500.0,0.00014997,2]
[331036964,1720021846019,-838.7,0.00014997,2]
[331036966,1720021846029,-500.0,0.00014997,2]
[331036968,1720021846038,-500.0,0.00014997,2]
[331036970,1720021846049,-8443.31,0.00014997,2]
[331036972,1720021846059,-866.09,0.00014997,2]
[331036974,1720021846069,-500.0,0.00014998,2]
[331036976,1720021846078,-500.0,0.00014998,2]
[331036978,1720021846089,-4395.66,0.00014998,2]